[Event "Polish Youth B18 Championship 2023"]
[Site "Jastrzebia Gora"]
[Date "2023.03.16"]
[Round "6.20"]
[White "Kossowski, Pawel"]
[Black "Smuda, Tomasz"]
[Result "1-0"]
[ECO "B00"]
[WhiteElo "1766"]
[BlackElo "1654"]
[Annotator "NA RC COMBH"]
[PlyCount "127"]
[EventDate "2023.03.11"]
[EventType "swiss"]
[EventCountry "POL"]
[SourceTitle "playchess.com"]
[Source "ChessBase"]
[SourceQuality "1"]
[TimeControl "40/5400+30:1800+30"]

1. e4 {[%emt 0:00:02]} Nc6 {[%emt 0:00:22]} 2. Nf3 {[%emt 0:00:15]} g6 {[%emt 0:00:59]} 3. d4 {[%emt 0:01:49]} d6 {[%emt 0:00:42]} 4. Nc3 {[%emt 0:01:45]} Bg7 {[%emt 0:00:50]} 5. h3 {[%emt 0:04:06]} Nf6 {[%emt 0:00:56]} 6. Be3 {[%emt 0:02:07]} a6 {[%emt 0:03:46]} 7. a4 {[%emt 0:02:02]} b6 {[%emt 0:00:23]} 8. Qd2 {[%emt 0:04:53]} O-O {[%emt 0:04:09]} 9. d5 {[%emt 0:10:10]} Nb8 10. Bh6 {[%emt 0:05:06]} Bb7 {[%emt 0:01:57]} 11. h4 {[%emt 0:05:34]} Bxh6 {[%emt 0:02:31]} 12. Qxh6 {[%emt 0:00:16]} Ng4 {[%emt 0:00:13]} 13. Qf4 {[%emt 0:02:59]} h5 {[%emt 0:08:12]} 14. Be2 {[%emt 0:02:55]} e5 {[%emt 0:15:29]} 15. Qg3 {[%emt 0:02:08]} c6 {[%emt 0:05:36]} 16. Ng5 {[%emt 0:03:01]} Nf6 {[%emt 0:02:01]} 17. dxc6 {[%emt 0:03:54]} Nxc6 {[%emt 0:00:37]} 18. Bc4 {[%emt 0:00:16]} Ne7 {[%emt 0:06:00]} 19. Qf3 {[%emt 0:03:52]} Nc6 {[%emt 0:06:52]} 20. Ne2 {[%emt 0:08:06]} b5 {[%emt 0:14:16]} 21. Bb3 {[%emt 0:03:04]} Na5 {[%emt 0:03:38]} 22. Ba2 {[%emt 0:03:13]} d5 {[%emt 0:03:14]} 23. Rd1 {[%emt 0:03:52]} Nxe4 {[%emt 0:06:08]} 24. Nxe4 {[%emt 0:03:11]} dxe4 {[%emt 0:00:20]} 25. Bxf7+ {[%emt 0:02:06]} Kg7 {[%emt 0:00:34]} 26. Qg3 {[%emt 0:05:01]} Qf6 {[%emt 0:01:38]} 27. Ba2 {[%emt 0:01:00]} Rad8 {[%emt 0:02:04]} 28. O-O {[%emt 0:00:24]} Nc4 {[%emt 0:03:16]} 29. Bxc4 {[%emt 0:01:58]} bxc4 {[%emt 0:00:13]} 30. Nc3 {[%emt 0:01:33]} Rd4 {[%emt 0:02:59]} 31. Ne2 {[%emt 0:02:02]} Rdd8 {[%emt 0:00:58]} 32. Rfe1 {[%emt 0:03:46]} Bc6 {[%emt 0:04:14]} 33. Nc3 {[%emt 0:01:07]} Qf5 {[%emt 0:00:31]} 34. Qe3 {[%emt 0:00:53]} Rxd1 {[%emt 0:00:51]} 35. Rxd1 {[%emt 0:00:04]} Rf7 {[%emt 0:00:59]} 36. Rd6 {[%emt 0:02:37]} Bb7 {[%emt 0:00:26]} 37. Rd2 {[%emt 0:03:34]} Qg4 {[%emt 0:00:33]} 38. Re2 {[%emt 0:01:41]} Rf3 {[%emt 0:00:32]} 39. Qc5 Rf7 {[%emt 0:00:30]} 40. Qxe5+ {[%emt 0:00:00]} Kh7 {[%emt 0:00:00]} 41. Nxe4 {[%emt 0:08:24]} Bxe4 {[%emt 0:08:32]} 42. Qxe4 {[%emt 0:02:11]} Qc8 {[%emt 0:01:36]} 43. Qe6 {[%emt 0:00:56]} Qc7 {[%emt 0:00:30]} 44. Qxa6 {[%emt 0:01:14]} Qf4 {[%emt 0:02:36]} 45. Qe6 {[%emt 0:02:06]} Rb7 {[%emt 0:02:01]} 46. c3 {[%emt 0:03:32]} Qxh4 {[%emt 0:01:58]} 47. Qe4 {[%emt 0:00:26]} Qxe4 {[%emt 0:01:02]} 48. Rxe4 {[%emt 0:00:02]} Rxb2 {[%emt 0:00:07]} 49. Rxc4 {[%emt 0:00:06]} Ra2 {[%emt 0:00:34]} 50. Rb4 {[%emt 0:01:36]} Kh6 {[%emt 0:00:36]} 51. f3 {[%emt 0:01:21]} Rc2 {[%emt 0:00:49]} 52. c4 {[%emt 0:00:20]} Kg5 {[%emt 0:01:26]} 53. Kh2 {[%emt 0:00:19]} Kh4 {[%emt 0:00:20]} 54. c5+ {[%emt 0:00:31]} Kg5 {[%emt 0:00:13]} 55. Kh3 {[%emt 0:00:50]} Kf5 {[%emt 0:01:35]} 56. Rb5 {[%emt 0:01:14]} Kf4 {[%emt 0:01:58]} 57. Rb4+ {[%emt 0:02:51]} Kf5 {[%emt 0:00:07]} 58. Kg3 {[%emt 0:00:14]} g5 {[%emt 0:00:15]} 59. Rb5 {[%emt 0:01:00]} h4+ {[%emt 0:00:40]} 60. Kh2 Rc4 {[%emt 0:03:15]} 61. a5 {[%emt 0:01:24]} Kf4 {[%emt 0:00:43]} 62. a6 {[%emt 0:00:35]} h3 {[%emt 0:02:30]} 63. Kxh3 {[%emt 0:00:38]} Ke3 {[%emt 0:00:17]} 64. Kg3 {[%emt 0:00:24]} 1-0

[Event "Polish Youth B18 Championship 2023"]
[Site "Jastrzebia Gora"]
[Date "2023.03.16"]
[Round "6.21"]
[White "Sternik, Piotr"]
[Black "Bem, Tymoteusz"]
[Result "0-1"]
[ECO "D11"]
[WhiteElo "1746"]
[BlackElo "1748"]
[Annotator "NA RC COMBH"]
[PlyCount "120"]
[EventDate "2023.03.11"]
[EventType "swiss"]
[EventCountry "POL"]
[SourceTitle "playchess.com"]
[Source "ChessBase"]
[SourceQuality "1"]
[TimeControl "40/5400+30:1800+30"]

1. d4 {[%emt 0:00:01]} d5 {[%emt 0:01:11]} 2. c4 {[%emt 0:00:07]} c6 {[%emt 0:01:03]} 3. Nf3 {[%emt 0:00:22]} Nf6 {[%emt 0:00:15]} 4. g3 {[%emt 0:00:05]} Bf5 {[%emt 0:01:24]} 5. Bg2 {[%emt 0:00:13]} h6 {[%emt 0:00:12]} 6. O-O {[%emt 0:00:17]} e6 {[%emt 0:00:09]} 7. Nbd2 {[%emt 0:06:43]} Nbd7 {[%emt 0:00:39]} 8. Re1 {[%emt 0:00:47]} Bh7 {[%emt 0:05:44]} 9. a3 {[%emt 0:09:12]} Bd6 {[%emt 0:02:45]} 10. b3 {[%emt 0:06:03]} O-O {[%emt 0:02:11]} 11. Bb2 {[%emt 0:00:11]} Qb8 {[%emt 0:05:20]} 12. Rc1 {[%emt 0:02:51]} Rc8 {[%emt 0:00:52]} 13. Nb1 {[%emt 0:14:02]} b5 {[%emt 0:04:22]} 14. c5 {[%emt 0:10:15]} Bc7 {[%emt 0:00:26]} 15. Nfd2 {[%emt 0:00:06]} e5 {[%emt 0:01:19]} 16. e4 {[%emt 0:00:27]} dxe4 {[%emt 0:05:51]} 17. Nxe4 {[%emt 0:00:30]} Nxe4 {[%emt 0:00:46]} 18. Bxe4 {[%emt 0:03:35]} Bxe4 {[%emt 0:00:31]} 19. Rxe4 {[%emt 0:00:04]} Nf6 {[%emt 0:00:51]} 20. Re3 {[%emt 0:02:26]} Rd8 {[%emt 0:04:31]} 21. Rd3 {[%emt 0:01:06]} e4 {[%emt 0:02:01]} 22. Re3 {[%emt 0:00:28]} Qc8 {[%emt 0:00:25]} 23. Nd2 {[%emt 0:06:31]} Qf5 {[%emt 0:02:36]} 24. Qe2 {[%emt 0:01:25]} Re8 {[%emt 0:10:32]} 25. Re1 {[%emt 0:00:52]} Re6 {[%emt 0:07:55]} 26. Nf1 {[%emt 0:23:54]} Rae8 {[%emt 0:00:28]} 27. Qc2 {[%emt 0:02:02]} Qg4 {[%emt 0:08:32]} 28. R3e2 {[%emt 0:02:47]} h5 {[%emt 0:02:44]} 29. Ne3 {[%emt 0:00:05]} Qh3 {[%emt 0:01:41]} 30. Nf1 {[%emt 0:01:42]} Qg4 {[%emt 0:02:13]} 31. Ne3 {[%emt 0:00:05]} Qf3 {[%emt 0:00:22]} 32. Ng2 {[%emt 0:00:47]} g5 {[%emt 0:02:45]} 33. Qd2 {[%emt 0:00:28]} Nh7 {[%emt 0:03:16]} 34. Qc3 {[%emt 0:06:06]} Qf5 {[%emt 0:02:20]} 35. Bc1 {[%emt 0:00:45]} h4 {[%emt 0:01:36]} 36. Rf1 {[%emt 0:00:24]} Qh3 {[%emt 0:03:34]} 37. Ne1 {[%emt 0:00:38]} Nf6 {[%emt 0:01:42]} 38. Bxg5 {[%emt 0:00:35]} Ng4 39. f4 {[%emt 0:00:09]} e3 {[%emt 0:01:22]} 40. Nf3 {[%emt 0:00:00]} hxg3 {[%emt 0:00:00]} 41. Rg2 {[%emt 0:14:56]} e2 {[%emt 0:01:28]} 42. Re1 {[%emt 0:00:38]} Re3 {[%emt 0:00:33]} 43. Qxe3 {[%emt 0:05:23]} Rxe3 {[%emt 0:00:24]} 44. Rxg3 {[%emt 0:00:05]} Qh5 {[%emt 0:02:35]} 45. h3 {[%emt 0:00:31]} Rxf3 {[%emt 0:00:50]} 46. Rxf3 {[%emt 0:00:31]} f6 {[%emt 0:02:14]} 47. hxg4 {[%emt 0:03:03]} Qxg4+ {[%emt 0:00:02]} 48. Kf2 {[%emt 0:00:07]} fxg5 {[%emt 0:00:12]} 49. fxg5 {[%emt 0:00:35]} Qxd4+ {[%emt 0:00:42]} 50. Kxe2 {[%emt 0:00:19]} Bf4 {[%emt 0:03:12]} 51. Kf1 {[%emt 0:02:17]} Kg7 {[%emt 0:02:44]} 52. Re2 {[%emt 0:01:21]} Kg6 {[%emt 0:01:22]} 53. Ref2 {[%emt 0:01:31]} Bxg5 {[%emt 0:00:41]} 54. Rf8 {[%emt 0:00:52]} Qd1+ {[%emt 0:00:15]} 55. Kg2 {[%emt 0:00:09]} Qg4+ {[%emt 0:00:24]} 56. Kf1 {[%emt 0:00:06]} Qh3+ {[%emt 0:00:43]} 57. Ke2 {[%emt 0:01:50]} Qxb3 {[%emt 0:00:20]} 58. Rg2 {[%emt 0:02:21]} Qc4+ {[%emt 0:01:54]} 59. Ke1 {[%emt 0:00:34]} Qc1+ {[%emt 0:00:07]} 60. Ke2 {[%emt 0:00:09]} Qe3+ {[%emt 0:03:05]} 0-1

[Event "Polish Youth B18 Championship 2023"]
[Site "Jastrzebia Gora"]
[Date "2023.03.16"]
[Round "6.22"]
[White "Wesolek, Krzysztof"]
[Black "Czarniecki, Pawel"]
[Result "0-1"]
[ECO "B15"]
[WhiteElo "1765"]
[BlackElo "1625"]
[Annotator "NA RC COMBH"]
[PlyCount "64"]
[EventDate "2023.03.11"]
[EventType "swiss"]
[EventCountry "POL"]
[SourceTitle "playchess.com"]
[Source "ChessBase"]
[SourceQuality "1"]
[TimeControl "40/5400+30:1800+30"]

1. e4 {[%emt 0:00:03]} c6 {[%emt 0:00:02]} 2. d4 {[%emt 0:00:03]} d5 {[%emt 0:00:04]} 3. Nc3 {[%emt 0:00:09]} dxe4 {[%emt 0:00:07]} 4. Nxe4 {[%emt 0:00:01]} Nf6 {[%emt 0:00:08]} 5. Nxf6+ {[%emt 0:00:05]} exf6 {[%emt 0:00:04]} 6. Be2 {[%emt 0:03:48]} Bd6 {[%emt 0:00:10]} 7. Nf3 {[%emt 0:00:09]} O-O {[%emt 0:00:09]} 8. O-O {[%emt 0:00:11]} Re8 {[%emt 0:00:05]} 9. Re1 {[%emt 0:01:34]} Nd7 {[%emt 0:00:11]} 10. a3 {[%emt 0:11:47]} Nf8 {[%emt 0:00:25]} 11. c4 {[%emt 0:12:09]} Be6 {[%emt 0:00:49]} 12. Bd2 {[%emt 0:06:09]} Qd7 {[%emt 0:01:47]} 13. Qb3 {[%emt 0:07:39]} a6 {[%emt 0:09:07]} 14. Rad1 {[%emt 0:00:37]} Rad8 {[%emt 0:00:52]} 15. Ba5 {[%emt 0:08:03]} Bc7 {[%emt 0:02:52]} 16. Bxc7 {[%emt 0:00:37]} Qxc7 {[%emt 0:00:05]} 17. Rd2 {[%emt 0:11:50]} b5 {[%emt 0:09:13]} 18. Qc3 {[%emt 0:02:53]} Bxc4 {[%emt 0:02:13]} 19. Bxc4 {[%emt 0:00:43]} Rxe1+ {[%emt 0:00:28]} 20. Nxe1 {[%emt 0:00:46]} bxc4 {[%emt 0:00:06]} 21. Qxc4 {[%emt 0:06:22]} Qa5 {[%emt 0:02:58]} 22. Nf3 {[%emt 0:01:30]} g5 {[%emt 0:02:22]} 23. h3 {[%emt 0:02:12]} h5 {[%emt 0:04:00]} 24. Rd1 {[%emt 0:03:16]} Qb6 {[%emt 0:01:18]} 25. b4 {[%emt 0:03:59]} Ne6 {[%emt 0:01:00]} 26. d5 {[%emt 0:06:52]} cxd5 {[%emt 0:10:06]} 27. Rxd5 {[%emt 0:00:02]} Nf4 {[%emt 0:00:44]} 28. Rxd8+ {[%emt 0:01:24]} Qxd8 {[%emt 0:00:05]} 29. Nd4 {[%emt 0:01:36]} Qxd4 {[%emt 0:00:28]} 30. Qxa6 {[%emt 0:00:45]} Qd1+ {[%emt 0:00:11]} 31. Kh2 {[%emt 0:00:21]} Ne2 {[%emt 0:00:13]} 32. Qc8+ {[%emt 0:03:02]} Kg7 {[%emt 0:00:10]} 0-1

[Event "Polish Youth B18 Championship 2023"]
[Site "Jastrzebia Gora"]
[Date "2023.03.17"]
[Round "7.1"]
[White "Dzida, Kamil"]
[Black "Ochedzan, Tymon"]
[Result "1-0"]
[ECO "E15"]
[WhiteElo "2333"]
[BlackElo "2240"]
[Annotator "TA"]
[PlyCount "89"]
[EventDate "2023.03.11"]
[EventType "swiss"]
[EventCountry "POL"]
[SourceTitle "playchess.com"]
[Source "ChessBase"]
[SourceQuality "1"]
[TimeControl "40/5400+30:1800+30"]

{[%evp 15,89,8,12,9,41,20,47,50,50,25,39,0,44,45,80,75,87,22,64,55,59,52,60,26,54,52,58,62,85,63,92,102,87,25,39,29,236,243,242,243,235,244,643,641,643,643,643,643,736,735,729,728,777,756,871,633,944,918,1004,987,29980,1132,29975,29976,29970,2027,29985,29986,29986,29983,29989,1739,29988,29989,29989,5106]} 1. d4 {[%emt 0:00:03]} Nf6 {[%emt 0:00:15]} 2. Nf3 {[%emt 0:00:09]} e6 {[%emt 0:02:42]} 3. c4 {[%emt 0:00:20]} b6 {[%emt 0:00:18]} 4. g3 {[%emt 0:00:08]} Bb4+ {[%emt 0:00:35]} 5. Bd2 {[%emt 0:01:03]} a5 {[%emt 0:00:25]} 6. Bg2 {[%emt 0:01:35]} Bb7 {[%emt 0:00:24]} 7. O-O {[%emt 0:01:10]} O-O {[%emt 0:00:11]} 8. Nc3 {[%emt 0:01:35]} d6 {[%emt 0:08:51] [#]} 9. d5 $1 {[%emt 0:08:40] E16: Queen's Indian: 4 g3 Bb7 5 Bg2 Bb4+.} e5 {[%emt 0:02:36]} (9... Bxc3 10. Bxc3) 10. Ne1 {[%emt 0:00:14] [#]} c6 $146 {[%emt 0:04:53]} ({Predecessor:} 10... Nbd7 11. e4 Nc5 12. Qe2 Ba6 13. Nc2 Bxc3 14. Bxc3 Na4 15. Qd3 Re8 16. Ne3 Nxc3 17. Qxc3 {1-0 Kezin,R (2492)-Rodin,D (2359) RUS-ch Rapid 2021 (8)}) 11. dxc6 {[%emt 0:01:01] White is slightly better.} Bxc6 {[%emt 0:01:32]} 12. Bxc6 {[%emt 0:04:40]} Nxc6 {[%emt 0:00:12]} 13. Nd5 {[%emt 0:00:46]} (13. Bg5 $5 {[%cal Rc3d5]}) 13... Nxd5 {[%emt 0:05:56]} 14. cxd5 {[%emt 0:00:36]} Bxd2 {[%emt 0:00:07]} 15. dxc6 {[%emt 0:05:09]} Bb4 16. Qd5 {[%emt 0:11:34]} (16. Nd3 $16) 16... Qc7 {[%emt 0:06:59]} 17. a3 {[%emt 0:05:22]} Bc5 {[%emt 0:00:36]} 18. Nd3 {[%emt 0:01:52] b4 is the strong threat.} a4 $1 {[%emt 0:03:27]} 19. Nb4 {[%emt 0:01:10]} Rac8 {[%emt 0:12:12] Black is weak on the light squares} 20. Rac1 {[%emt 0:00:53]} Qa7 {[%emt 0:04:31]} 21. e3 {[%emt 0:02:58]} Qa5 {[%emt 0:08:04]} 22. Rfd1 {[%emt 0:05:07] White has more active pieces.} Bxb4 {[%emt 0:07:54]} 23. axb4 {[%emt 0:00:05]} Qxb4 {[%emt 0:00:07]} 24. Qxd6 {[%emt 0:00:05]} ({Better is} 24. c7 $16) 24... Qxb2 $11 {[%emt 0:03:03]} 25. Rb1 {[%emt 0:04:14]} (25. c7 {with more complications.} a3 26. Rb1 Qc3 27. Rdc1) 25... Qc3 {[%emt 0:00:47] [#] This move loses the game for Black.} (25... Qc2 $1 $11 {and Black has nothing to worry.}) 26. Rdc1 $1 $18 {[%emt 0:01:27]} (26. Rxb6 g6 $11) 26... Qa5 {[%emt 0:01:16]} 27. c7 {[%emt 0:00:53] Repels Rfd8} a3 {[%emt 0:03:33] [#]} 28. Ra1 $1 {[%emt 0:02:51]} (28. Qxb6 Qxb6 29. Rxb6 f6 $11) (28. Rxb6 a2 29. Ra6 a1=Q 30. Rxa1 Qxc7 $11) 28... Ra8 $2 {[%emt 0:00:58] [#]} (28... a2 29. Rc2 e4 30. Raxa2 (30. Rcxa2 Qc5 $16) 30... Qb5) 29. Rxa3 $3 {[%emt 0:00:50][%mdl 576] Deflection, Promotion} Qxa3 {[%emt 0:01:33]} 30. Qxa3 {[%emt 0:00:08]} (30. Qxb6 $2 {perishes.} Qxc1+ 31. Kg2 Rfc8 $19) 30... Rxa3 {[%emt 0:00:02]} 31. c8=Q ({And not} 31. c8=R Ra7 $15) 31... Ra8 {[%emt 0:00:15]} 32. Qc7 {[%emt 0:00:14][%csl LRb6,LRe5]} Rae8 {[%emt 0:03:02]} 33. Qxb6 {[%emt 0:00:07]} Re6 {[%emt 0:00:40]} 34. Rc6 {[%emt 0:00:10]} Ree8 {[%emt 0:00:57]} 35. e4 {[%emt 0:00:24]} h6 {[%emt 0:00:56]} 36. Qc5 {[%emt 0:00:10]} Kh7 {[%emt 0:01:46]} 37. Rc7 {[%emt 0:00:25]} f6 {[%emt 0:01:10]} 38. Re7 {[%emt 0:00:06]} (38. Qc6 $142 Rd8 39. h4 Rd4 40. Kg2 Kh8 41. g4 Rd2 42. Qe6 Rd3 43. g5) 38... Rc8 {[%emt 0:00:22]} 39. Qa7 {[%emt 0:00:07]} Rg8 {[%emt 0:00:05]} 40. Qd7 {[%emt 0:00:00]} (40. Qb6 $142 Kh8 41. Qe6 Rcf8 42. Kg2 Rc8 43. Qg4 Rce8 44. Rc7 Kh7 45. Qf5+ Kh8 46. g4) 40... Rb8 {[%emt 0:00:00]} 41. Qf5+ {[%emt 0:00:12]} Kh8 {[%emt 0:00:50]} 42. Qg6 {[%emt 0:00:15]} Ra8 {[%emt 0:00:37]} 43. Rf7 {[%emt 0:00:10]} (43. g4 $142 Ra1+ 44. Kg2 Re1 45. h4 f5 46. exf5 Re4 47. Kg3 Rd4 48. f6) 43... Ra6 {[%emt 0:00:11]} 44. Kg2 {[%emt 0:00:06]} Rb6 {[%emt 0:00:24]} 45. g4 {[%emt 0:00:07] Weighted Error Value: White=0.13 (very precise) /Black=0.78} (45. h4 $142 Rd6 46. g4 Rdd8 47. Rxf6 Rde8 48. Rf7 Ref8 49. Rxf8 Rxf8 50. Qh5) 1-0

[Event "Polish Youth B18 Championship 2023"]
[Site "Jastrzebia Gora"]
[Date "2023.03.17"]
[Round "7.2"]
[White "Karolczuk, Iwo"]
[Black "Luczak, Filip"]
[Result "1-0"]
[ECO "E00"]
[WhiteElo "2346"]
[BlackElo "2345"]
[Annotator "TA"]
[PlyCount "78"]
[EventDate "2023.03.11"]
[EventType "swiss"]
[EventCountry "POL"]
[SourceTitle "playchess.com"]
[Source "ChessBase"]
[SourceQuality "1"]
[TimeControl "40/5400+30:1800+30"]

{[%evp 9,78,29,38,31,56,48,49,49,33,41,54,48,61,19,22,10,9,11,72,70,142,80,87,87,257,267,257,276,462,468,473,470,436,429,483,360,356,360,482,469,478,464,479,479,526,536,535,530,631,626,645,646,639,623,743,728,12835,12835,12836,12836,12837,12837,12837,12838,12839,12839,12840,12839,12841,12841,786]} 1. d4 {[%emt 0:00:04]} e6 {[%emt 0:00:30]} 2. c4 {[%emt 0:00:32]} Bb4+ {[%emt 0:00:07]} 3. Bd2 {[%emt 0:01:39]} Qe7 {[%emt 0:00:09]} 4. e4 {[%emt 0:07:01]} d5 {[%emt 0:02:50]} 5. e5 {[%emt 0:04:19]} Bxd2+ {[%emt 0:17:00]} 6. Qxd2 {[%emt 0:02:30] A40: Unusual replies to 1 d4.} (6. Kxd2 c5 $15) 6... dxc4 {[%emt 0:03:28]} 7. Bxc4 {[%emt 0:00:31]} Bd7 {[%emt 0:00:35]} 8. Nc3 {[%emt 0:05:09] [#] White is slightly better.} Bc6 $146 {[%emt 0:05:36]} ({Predecessor:} 8... Qb4 9. b3 Nc6 10. Nge2 Nh6 11. O-O O-O 12. Rad1 Rad8 13. Bd3 Ne7 14. Qc2 Kh8 {1-0 Caspi,I (2499)-Eliagov,K (2257) ISR-ch op Safed 2021 (7)}) 9. Nge2 {[%emt 0:02:05]} Nh6 {[%emt 0:07:47]} 10. O-O {[%emt 0:13:30]} O-O {[%emt 0:02:05]} 11. Ng3 {[%emt 0:02:40] White is more active.} Nd7 {[%emt 0:03:00]} 12. Qf4 {[%emt 0:04:42]} Qb4 {[%emt 0:09:24][%csl LRb2,LRc4]} 13. Bb3 {[%emt 0:06:06]} Nc5 {[%emt 0:01:41] [#]} (13... a5 $11 {keeps the balance.}) 14. Bc2 $1 $16 {[%emt 0:02:37]} f5 {[%emt 0:05:18]} (14... Qxb2 $2 15. Qd2 Nf5 16. Rab1 $18 (16. dxc5 Rad8 $18)) (14... Nd7 $14) 15. Rab1 {[%emt 0:07:04]} (15. exf6 $142 Nd7 16. Bb3 (16. Qxc7 Nxf6 17. Qe5 Rae8 $16) 16... Nxf6 17. Bxe6+ (17. Qxc7 Rae8 $16) 17... Kh8 18. Qd2 (18. Qxc7 Qxd4 19. Rad1 Qb4 $16)) 15... Rad8 {[%emt 0:05:23]} 16. Rfd1 {[%emt 0:01:26]} Ba4 $2 {[%emt 0:05:55] This move loses the game for Black.} (16... Ne4 $16 {keeps fighting.}) 17. Nxa4 $18 {[%emt 0:07:06]} Nxa4 {[%emt 0:00:02] [#]} 18. Nh5 $1 {[%emt 0:01:00][%cal Bg3h5,Bh5f4,Bf4e6,Be6c5][%mdl 32] Black must now prevent Qg5.} Rd7 $2 {[%emt 0:11:20] [#]} (18... Nb6 {was necessary.} 19. Qg5 Rd7 20. Nf6+ Rxf6) 19. d5 $1 {[%emt 0:04:18][%mdl 576] Discovered Attack} Qxf4 {[%emt 0:01:30]} 20. Nxf4 {[%emt 0:00:07]} Nc5 {[%emt 0:01:32]} 21. b4 {[%emt 0:04:36][%mdl 64] Deflection} (21. Nxe6 Nxe6 22. dxe6 Re7 $18) (21. dxe6 Rxd1+ 22. Rxd1 Re8 $18) 21... Ne4 {[%emt 0:04:45]} 22. Bxe4 {[%emt 0:00:21]} (22. dxe6 Rxd1+ 23. Rxd1 Re8 $18) (22. Nxe6 Nc3 23. Bb3 Nxb1 $18) 22... fxe4 {[%emt 0:00:02]} 23. Nxe6 {[%emt 0:00:13]} ({Don't play} 23. dxe6 Re7 $18) 23... Rf5 {[%emt 0:01:40]} 24. Nc5 {[%emt 0:00:15][%csl LRb7,LRd7,LRe4] White is clearly winning.} Rd8 {[%emt 0:01:14]} 25. Nxb7 {[%emt 0:01:43]} (25. Nxe4 Rxe5 26. Nc5 b6 $16) 25... Rb8 {[%emt 0:01:11]} 26. Nc5 {[%emt 0:01:38]} Ng4 {[%emt 0:00:19]} 27. d6 {[%emt 0:06:09]} (27. Nxe4 Rxe5 28. Rd4 Rbe8 $18) 27... cxd6 {[%emt 0:00:32]} 28. exd6 {[%emt 0:00:40][%cal Be5d6,Bd6d7][%mdl 32] Threatens to win with d7.} ({Less strong is} 28. Nxe4 dxe5 29. Rd5 Nf6 30. Nxf6+ gxf6 $18) ({Weaker is} 28. Rxd6 Nxf2 29. e6 Rxc5 $18) 28... e3 {[%emt 0:04:25]} 29. fxe3 {[%emt 0:02:18]} Nxe3 {[%emt 0:00:01] [#]} 30. d7 $1 {[%emt 0:04:41]} Nxd1 {[%emt 0:00:06]} 31. Rxd1 {[%emt 0:00:05][%mdl 4096] Endgame KRR-KRN} Rd8 {[%emt 0:00:09]} 32. Ne6 {[%emt 0:00:11]} Rff8 {[%emt 0:00:06]} 33. Nxd8 {[%emt 0:00:13]} Rxd8 {[%emt 0:00:04] KR-KR} 34. Kf2 {[%emt 0:00:06]} Kf7 {[%emt 0:00:03]} 35. Ke3 {[%emt 0:00:10]} Ke6 {[%emt 0:00:43]} 36. Ke4 {[%emt 0:00:21]} h6 {[%emt 0:00:26]} 37. a4 {[%emt 0:00:06]} g6 {[%emt 0:00:15]} 38. b5 {[%emt 0:00:16]} Kf6 39. Rd6+ {[%emt 0:00:33][%mdl 64] Deflection} Ke7 {[%emt 0:00:16] Weighted Error Value: White=0.10 (very precise) /Black=0.44} 1-0